{"text_format":"1","workbook":"xlsx","n_sheets":4,"sheets":["Calandrier de prés ","état ","Mes graphes","Pramettre "],"not_rendered":{"charts":1,"images":0,"macros":1,"external_links":0,"defined_names":1,"comments":0,"pivot_tables":0},"unopened":[],"bounds":{"document_bytes":16777216,"sheet_cells":100000,"rows_first":2000,"rows_last":500,"rows_between":2000,"halvings":0,"cell_chars":16384,"cell_head_chars":4096},"cells_cut":0,"cells_raw":0,"read":"whole","date_system":"1900"}

{"sheet":"Calandrier de prés ","index":0,"n_rows":465,"n_cols":310,"rows_kept":465,"cut":false,"hidden":false,"merged":[[3,9,3,15],[3,16,3,22],[3,23,3,29],[3,30,3,36],[3,37,3,43],[3,44,3,50],[3,51,3,57],[3,58,3,64],[3,65,3,71],[3,72,3,78],[3,121,3,127],[3,128,3,134],[3,135,3,141],[3,142,3,148],[3,79,3,85],[3,86,3,92],[3,93,3,99],[3,100,3,106],[3,107,3,113],[3,226,3,232],[3,233,3,239],[3,240,3,246],[3,247,3,253],[3,303,3,309],[3,254,3,260],[3,261,3,267],[3,268,3,274],[3,275,3,281],[3,282,3,288],[3,296,3,302],[0,11,0,20],[0,1,1,1],[0,0,1,0],[3,289,3,295],[3,184,3,190],[3,191,3,197],[3,198,3,204],[3,205,3,211],[3,212,3,218],[3,149,3,155],[3,156,3,162],[3,163,3,169],[3,170,3,176],[3,177,3,183],[3,114,3,120],[3,219,3,225]]}
["Aujourd'hui nous somme le ",{"$f":"TODAY()","v":"2022-03-13"},null,null,null,null,null,null,null,null,null,"Défiller le calandrier"]
[]
[]
[null,null,null,null,null,null,null,null,null,{"$f":"TEXT(J5,\"j-mmm-aaaa\")","v":"7-mars-2022"},null,null,null,null,null,null,{"$f":"TEXT(Q5,\"j-mmm-aaaa\")","v":"14-mars-2022"},null,null,null,null,null,null,{"$f":"TEXT(X5,\"j-mmm-aaaa\")","v":"21-mars-2022"},null,null,null,null,null,null,{"$f":"TEXT(AE5,\"j-mmm-aaaa\")","v":"28-mars-2022"},null,null,null,null,null,null,{"$f":"TEXT(AL5,\"j-mmm-aaaa\")","v":"4-avr-2022"},null,null,null,null,null,null,{"$f":"TEXT(AS5,\"j-mmm-aaaa\")","v":"11-avr-2022"},null,null,null,null,null,null,{"$f":"TEXT(AZ5,\"j-mmm-aaaa\")","v":"18-avr-2022"},null,null,null,null,null,null,{"$f":"TEXT(BG5,\"j-mmm-aaaa\")","v":"25-avr-2022"},null,null,null,null,null,null,{"$f":"TEXT(BN5,\"j-mmm-aaaa\")","v":"2-mai-2022"},null,null,null,null,null,null,{"$f":"TEXT(BU5,\"j-mmm-aaaa\")","v":"9-mai-2022"},null,null,null,null,null,null,{"$f":"TEXT(CB5,\"j-mmm-aaaa\")","v":"16-mai-2022"},null,null,null,null,null,null,{"$f":"TEXT(CI5,\"j-mmm-aaaa\")","v":"23-mai-2022"},null,null,null,null,null,null,{"$f":"TEXT(CP5,\"j-mmm-aaaa\")","v":"30-mai-2022"},null,null,null,null,null,null,{"$f":"TEXT(CW5,\"j-mmm-aaaa\")","v":"6-juin-2022"},null,null,null,null,null,null,{"$f":"TEXT(DD5,\"j-mmm-aaaa\")","v":"13-juin-2022"},null,null,null,null,null,null,{"$f":"TEXT(DK5,\"j-mmm-aaaa\")","v":"20-juin-2022"},null,null,null,null,null,null,{"$f":"TEXT(DR5,\"j-mmm-aaaa\")","v":"27-juin-2022"},null,null,null,null,null,null,{"$f":"TEXT(DY5,\"j-mmm-aaaa\")","v":"4-juil-2022"},null,null,null,null,null,null,{"$f":"TEXT(EF5,\"j-mmm-aaaa\")","v":"11-juil-2022"},null,null,null,null,null,null,{"$f":"TEXT(EM5,\"j-mmm-aaaa\")","v":"18-juil-2022"},null,null,null,null,null,null,{"$f":"TEXT(ET5,\"j-mmm-aaaa\")","v":"25-juil-2022"},null,null,null,null,null,null,{"$f":"TEXT(FA5,\"j-mmm-aaaa\")","v":"1-août-2022"},null,null,null,null,null,null,{"$f":"TEXT(FH5,\"j-mmm-aaaa\")","v":"8-août-2022"},null,null,null,null,null,null,{"$f":"TEXT(FO5,\"j-mmm-aaaa\")","v":"15-août-2022"},null,null,null,null,null,null,{"$f":"TEXT(FV5,\"j-mmm-aaaa\")","v":"22-août-2022"},null,null,null,null,null,null,{"$f":"TEXT(GC5,\"j-mmm-aaaa\")","v":"29-août-2022"},null,null,null,null,null,null,{"$f":"TEXT(GJ5,\"j-mmm-aaaa\")","v":"5-sept-2022"},null,null,null,null,null,null,{"$f":"TEXT(GQ5,\"j-mmm-aaaa\")","v":"12-sept-2022"},null,null,null,null,null,null,{"$f":"TEXT(GX5,\"j-mmm-aaaa\")","v":"19-sept-2022"},null,null,null,null,null,null,{"$f":"TEXT(HE5,\"j-mmm-aaaa\")","v":"26-sept-2022"},null,null,null,null,null,null,{"$f":"TEXT(HL5,\"j-mmm-aaaa\")","v":"3-oct-2022"},null,null,null,null,null,null,{"$f":"TEXT(HS5,\"j-mmm-aaaa\")","v":"10-oct-2022"},null,null,null,null,null,null,{"$f":"TEXT(HZ5,\"j-mmm-aaaa\")","v":"17-oct-2022"},null,null,null,null,null,null,{"$f":"TEXT(IG5,\"j-mmm-aaaa\")","v":"24-oct-2022"},null,null,null,null,null,null,{"$f":"TEXT(IN5,\"j-mmm-aaaa\")","v":"31-oct-2022"},null,null,null,null,null,null,{"$f":"TEXT(IU5,\"j-mmm-aaaa\")","v":"7-nov-2022"},null,null,null,null,null,null,{"$f":"TEXT(JB5,\"j-mmm-aaaa\")","v":"14-nov-2022"},null,null,null,null,null,null,{"$f":"TEXT(JI5,\"j-mmm-aaaa\")","v":"21-nov-2022"},null,null,null,null,null,null,{"$f":"TEXT(JP5,\"j-mmm-aaaa\")","v":"28-nov-2022"},null,null,null,null,null,null,{"$f":"TEXT(JW5,\"j-mmm-aaaa\")","v":"5-déc-2022"},null,null,null,null,null,null,{"$f":"TEXT(KD5,\"j-mmm-aaaa\")","v":"12-déc-2022"},null,null,null,null,null,null,{"$f":"TEXT(KK5,\"j-mmm-aaaa\")","v":"19-déc-2022"},null,null,null,null,null,null,{"$f":"TEXT(KR5,\"j-mmm-aaaa\")","v":"26-déc-2022"}]
[null,null,null,null,null,null,null,null,null,{"$f":"$B$1-WEEKDAY(B1,3)+(week1-1)*7","v":"2022-03-07"},{"$f":"J5+1","v":"2022-03-08"},"2022-03-09","2022-03-10","2022-03-11","2022-03-12","2022-03-13","2022-03-14","2022-03-15","2022-03-16","2022-03-17","2022-03-18","2022-03-19","2022-03-20","2022-03-21","2022-03-22","2022-03-23","2022-03-24","2022-03-25","2022-03-26","2022-03-27","2022-03-28","2022-03-29","2022-03-30","2022-03-31","2022-04-01","2022-04-02","2022-04-03","2022-04-04","2022-04-05","2022-04-06","2022-04-07","2022-04-08","2022-04-09","2022-04-10","2022-04-11","2022-04-12","2022-04-13","2022-04-14","2022-04-15","2022-04-16","2022-04-17","2022-04-18","2022-04-19","2022-04-20","2022-04-21","2022-04-22","2022-04-23","2022-04-24","2022-04-25","2022-04-26","2022-04-27","2022-04-28","2022-04-29","2022-04-30","2022-05-01","2022-05-02","2022-05-03","2022-05-04","2022-05-05","2022-05-06","2022-05-07","2022-05-08","2022-05-09","2022-05-10",{"$f":"BV5+1","v":"2022-05-11"},"2022-05-12","2022-05-13","2022-05-14","2022-05-15","2022-05-16","2022-05-17","2022-05-18","2022-05-19","2022-05-20","2022-05-21","2022-05-22","2022-05-23","2022-05-24","2022-05-25","2022-05-26","2022-05-27","2022-05-28","2022-05-29","2022-05-30","2022-05-31","2022-06-01","2022-06-02","2022-06-03","2022-06-04","2022-06-05","2022-06-06","2022-06-07","2022-06-08","2022-06-09","2022-06-10","2022-06-11","2022-06-12","2022-06-13","2022-06-14","2022-06-15","2022-06-16","2022-06-17","2022-06-18","2022-06-19","2022-06-20","2022-06-21","2022-06-22","2022-06-23","2022-06-24","2022-06-25","2022-06-26","2022-06-27","2022-06-28","2022-06-29","2022-06-30","2022-07-01","2022-07-02","2022-07-03","2022-07-04","2022-07-05","2022-07-06","2022-07-07","2022-07-08","2022-07-09","2022-07-10","2022-07-11","2022-07-12","2022-07-13",{"$f":"EH5+1","v":"2022-07-14"},"2022-07-15","2022-07-16","2022-07-17","2022-07-18","2022-07-19","2022-07-20","2022-07-21","2022-07-22","2022-07-23","2022-07-24","2022-07-25","2022-07-26","2022-07-27","2022-07-28","2022-07-29","2022-07-30","2022-07-31","2022-08-01","2022-08-02","2022-08-03","2022-08-04","2022-08-05","2022-08-06","2022-08-07","2022-08-08","2022-08-09","2022-08-10","2022-08-11","2022-08-12","2022-08-13","2022-08-14","2022-08-15","2022-08-16","2022-08-17","2022-08-18","2022-08-19","2022-08-20","2022-08-21","2022-08-22","2022-08-23","2022-08-24","2022-08-25","2022-08-26","2022-08-27","2022-08-28","2022-08-29","2022-08-30","2022-08-31","2022-09-01","2022-09-02","2022-09-03","2022-09-04","2022-09-05","2022-09-06","2022-09-07","2022-09-08","2022-09-09","2022-09-10","2022-09-11","2022-09-12","2022-09-13","2022-09-14","2022-09-15",{"$f":"GT5+1","v":"2022-09-16"},"2022-09-17","2022-09-18","2022-09-19","2022-09-20","2022-09-21","2022-09-22","2022-09-23","2022-09-24","2022-09-25","2022-09-26","2022-09-27","2022-09-28","2022-09-29","2022-09-30","2022-10-01","2022-10-02","2022-10-03","2022-10-04","2022-10-05","2022-10-06","2022-10-07","2022-10-08","2022-10-09","2022-10-10","2022-10-11","2022-10-12","2022-10-13","2022-10-14","2022-10-15","2022-10-16","2022-10-17","2022-10-18","2022-10-19","2022-10-20","2022-10-21","2022-10-22","2022-10-23","2022-10-24","2022-10-25","2022-10-26","2022-10-27","2022-10-28","2022-10-29","2022-10-30","2022-10-31","2022-11-01","2022-11-02","2022-11-03","2022-11-04","2022-11-05","2022-11-06","2022-11-07","2022-11-08","2022-11-09","2022-11-10","2022-11-11","2022-11-12","2022-11-13","2022-11-14","2022-11-15","2022-11-16","2022-11-17","2022-11-18",{"$f":"JF5+1","v":"2022-11-19"},"2022-11-20","2022-11-21","2022-11-22","2022-11-23","2022-11-24","2022-11-25","2022-11-26","2022-11-27","2022-11-28","2022-11-29","2022-11-30","2022-12-01","2022-12-02","2022-12-03","2022-12-04","2022-12-05","2022-12-06","2022-12-07","2022-12-08","2022-12-09","2022-12-10","2022-12-11","2022-12-12","2022-12-13","2022-12-14","2022-12-15","2022-12-16","2022-12-17","2022-12-18","2022-12-19","2022-12-20","2022-12-21","2022-12-22","2022-12-23","2022-12-24","2022-12-25","2022-12-26","2022-12-27","2022-12-28","2022-12-29","2022-12-30","2022-12-31","2023-01-01"]
["zezae","eeee","rr","rrr","rrrrrrr","Date d'emprunt","Date de retour ","NB jour ",null,{"$f":"CHOOSE(WEEKDAY(J5,1),\"D\",\"L\",\"M\",\"Me\",\"J\",\"V\",\"S\")","v":"L"},{"$f":"CHOOSE(WEEKDAY(K5,1),\"D\",\"L\",\"M\",\"Me\",\"J\",\"V\",\"S\")","v":"M"},{"$f":"CHOOSE(WEEKDAY(L5,1),\"D\",\"L\",\"M\",\"Me\",\"J\",\"V\",\"S\")","v":"Me"},"J","V","S","D","L","M","Me","J","V","S","D","L","M","Me","J","V","S","D","L","M","Me","J","V","S","D","L","M","Me","J","V","S","D","L","M","Me","J","V","S","D","L","M","Me","J","V","S","D","L","M","Me","J","V","S","D","L","M","Me","J","V","S","D","L","M","Me",{"$f":"CHOOSE(WEEKDAY(BX5,1),\"D\",\"L\",\"M\",\"Me\",\"J\",\"V\",\"S\")","v":"J"},"V","S","D","L","M","Me","J","V","S","D","L","M","Me","J","V","S","D","L","M","Me","J","V","S","D","L","M","Me","J","V","S","D","L","M","Me","J","V","S","D","L","M","Me","J","V","S","D","L","M","Me","J","V","S","D","L","M","Me","J","V","S","D","L","M","Me","J",{"$f":"CHOOSE(WEEKDAY(EJ5,1),\"D\",\"L\",\"M\",\"Me\",\"J\",\"V\",\"S\")","v":"V"},"S","D","L","M","Me","J","V","S","D","L","M","Me","J","V","S","D","L","M","Me","J","V","S","D","L","M","Me","J","V","S","D","L","M","Me","J","V","S","D","L","M","Me","J","V","S","D","L","M","Me","J","V","S","D","L","M","Me","J","V","S","D","L","M","Me","J","V",{"$f":"CHOOSE(WEEKDAY(GV5,1),\"D\",\"L\",\"M\",\"Me\",\"J\",\"V\",\"S\")","v":"S"},"D","L","M","Me","J","V","S","D","L","M","Me","J","V","S","D","L","M","Me","J","V","S","D","L","M","Me","J","V","S","D","L","M","Me","J","V","S","D","L","M","Me","J","V","S","D","L","M","Me","J","V","S","D","L","M","Me","J","V","S","D","L","M","Me","J","V","S",{"$f":"CHOOSE(WEEKDAY(JH5,1),\"D\",\"L\",\"M\",\"Me\",\"J\",\"V\",\"S\")","v":"D"},"L","M","Me","J","V","S","D","L","M","Me","J","V","S","D","L","M","Me","J","V","S","D","L","M","Me","J","V","S","D","L","M","Me","J","V","S","D","L","M","Me","J","V","S","D"]
["   ",null,null,null,null,"2022-03-12","2022-03-18",{"$f":"IF(OR(F7=0,G7=0),\"\",NETWORKDAYS(F7,G7))","v":5}]
["   ",null,null,null,null,null,null,""]
["   ",null,null,null,null,null,null,""]
["   ",null,null,null,null,null,null,""]
["   ",null,null,null,null,null,null,""]
["   ",null,null,null,null,null,null,""]
["   ",null,null,null,null,null,null,""]
["   ",null,null,null,null,null,null,""]
["   ",null,null,null,null,null,null,""]
["   ",null,null,null,null,null,null,""]
["   ",null,null,null,null,null,null,""]
["   ",null,null,null,null,null,null,""]
["   ",null,null,null,null,null,null,""]
["   ",null,null,null,null,null,null,""]
["   ",null,null,null,null,null,null,""]
["   ",null,null,null,null,null,null,""]
["   ",null,null,null,null,null,null,""]
["   ",null,null,null,null,null,null,""]
["   ",null,null,null,null,null,null,""]
["   ",null,null,null,null,null,null,""]
["   ",null,null,null,null,null,null,""]
["   ",null,null,null,null,null,null,""]
["   ",null,null,null,null,null,null,""]
["   ",null,null,null,null,null,null,""]
["   "," ",null,null,null,null,null,""]
["   ",null,null,null,null,null,null,""]
["   ",null,null,null,null,null,null,""]
["   ",null,null,null,null,null,null,""]
["   ",null,null,null,null,null,null,""]
["   ",null,null,null,null,null,null,""]
["   ",null,null,null,null,null,null,""]
["   ",null,null,null,null,null,null,""]
["   ",null,null,null,null,null,null,""]
["   ",null,null,null,null,null,null,""]
["   ",null,null,null,null,null,null,""]
["   ",null,null,null,null,null,null,""]
["   ",null,null,null,null,null,null,""]
["   ",null,null,null,null,null,null,""]
["   ",null,null,null,null,null,null,""]
["   ",null,null,null,null,null,null,""]
["   ",null,null,null,null,null,null,""]
["   ",null,null,null,null,null,null,""]
["   ",null,null,null,null,null,null,""]
["   ",null,null,null,null,null,null,""]
["   ",null,null,null,null,null,null,""]
["   ",null,null,null,null,null,null,""]
["   ",null,null,null,null,null,null,""]
["   ",null,null,null,null,null,null,""]
["   ",null,null,null,null,null,null,""]
["   ",null,null,null,null,null,null,""]
["   ",null,null,null,null,null,null,""]
["   ",null,null,null,null,null,null,""]
["   ",null,null,null,null,null,null,""]
["   ",null,null,null,null,null,null,""]
["   ",null,null,null,null,null,null,""]
["   ",null,null,null,null,null,null,""]
["   ",null,null,null,null,null,null,""]
["   ",null,null,null,null,null,null,""]
["   ",null,null,null,null,null,null,""]
["   ",null,null,null,null,null,null,""]
["   ",null,null,null,null,null,null,""]
["   ",null,null,null,null,null,null,""]
["   ",null,null,null,null,null,null,""]
["   ",null,null,null,null,null,null,""]
["   ",null,null,null,null,null,null,{"$f":"IF(OR(F71=0,G71=0),\"\",NETWORKDAYS(F71,G71))","v":""}]
["   ",null,null,null,null,null,null,""]
["   ",null,null,null,null,null,null,""]
["   ",null,null,null,null,null,null,""]
["   ",null,null,null,null,null,null,""]
["   ",null,null,null,null,null,null,""]
["   ",null,null,null,null,null,null,""]
["   ",null,null,null,null,null,null,""]
["   ",null,null,null,null,null,null,""]
["   ",null,null,null,null,null,null,""]
["   ",null,null,null,null,null,null,""]
["   ",null,null,null,null,null,null,""]
["   ",null,null,null,null,null,null,""]
["   ",null,null,null,null,null,null,""]
["   ",null,null,null,null,null,null,""]
["   ",null,null,null,null,null,null,""]
["   ",null,null,null,null,null,null,""]
["   ",null,null,null,null,null,null,""]
["   ",null,null,null,null,null,null,""]
["   ",null,null,null,null,null,null,""]
["   ",null,null,null,null,null,null,""]
["   ",null,null,null,null,null,null,""]
["   ",null,null,null,null,null,null,""]
["   ",null,null,null,null,null,null,""]
["   ",null,null,null,null,null,null,""]
["   ",null,null,null,null,null,null,""]
["   ",null,null,null,null,null,null,""]
["   ",null,null,null,null,null,null,""]
["   ",null,null,null,null,null,null,""]
["   ",null,null,null,null,null,null,""]
["   ",null,null,null,null,null,null,""]
["   ",null,null,null,null,null,null,""]
["   ",null,null,null,null,null,null,""]
["   ",null,null,null,null,null,null,""]
["   ",null,null,null,null,null,null,""]
["   ",null,null,null,null,null,null,""]
["   ",null,null,null,null,null,null,""]
["   ",null,null,null,null,null,null,""]
["   ",null,null,null,null,null,null,""]
["   ",null,null,null,null,null,null,""]
["   ",null,null,null,null,null,null,""]
["   ",null,null,null,null,null,null,""]
["   ",null,null,null,null,null,null,""]
["   ",null,null,null,null,null,null,""]
["   ",null,null,null,null,null,null,""]
["   ",null,null,null,null,null,null,""]
["   ",null,null,null,null,null,null,""]
["   ",null,null,null,null,null,null,""]
["   ",null,null,null,null,null,null,""]
["   ",null,null,null,null,null,null,""]
["   ",null,null,null,null,null,null,""]
["   ",null,null,null,null,null,null,""]
["   ",null,null,null,null,null,null,""]
["   ",null,null,null,null,null,null,""]
["   ",null,null,null,null,null,null,""]
["   ",null,null,null,null,null,null,""]
["   ",null,null,null,null,null,null,""]
["   ",null,null,null,null,null,null,""]
["   ",null,null,null,null,null,null,""]
["   ",null,null,null,null,null,null,""]
["   ",null,null,null,null,null,null,""]
["   ",null,null,null,null,null,null,""]
["   ",null,null,null,null,null,null,""]
["   ",null,null,null,null,null,null,""]
["   ",null,null,null,null,null,null,{"$f":"IF(OR(F135=0,G135=0),\"\",NETWORKDAYS(F135,G135))","v":""}]
["   ",null,null,null,null,null,null,""]
["   ",null,null,null,null,null,null,""]
["   ",null,null,null,null,null,null,""]
["   ",null,null,null,null,null,null,""]
["   ",null,null,null,null,null,null,""]
["   ",null,null,null,null,null,null,""]
["   ",null,null,null,null,null,null,""]
["   ",null,null,null,null,null,null,""]
["   ",null,null,null,null,null,null,""]
["   ",null,null,null,null,null,null,""]
["   ",null,null,null,null,null,null,""]
["   ",null,null,null,null,null,null,""]
["   ",null,null,null,null,null,null,""]
["   ",null,null,null,null,null,null,""]
["   ",null,null,null,null,null,null,""]
["   ",null,null,null,null,null,null,""]
["   ",null,null,null,null,null,null,""]
["   ",null,null,null,null,null,null,""]
["   ",null,null,null,null,null,null,""]
["   ",null,null,null,null,null,null,""]
["   ",null,null,null,null,null,null,""]
["   ",null,null,null,null,null,null,""]
["   ",null,null,null,null,null,null,""]
["   ",null,null,null,null,null,null,""]
["   ",null,null,null,null,null,null,""]
["   ",null,null,null,null,null,null,""]
["   ",null,null,null,null,null,null,""]
["   ",null,null,null,null,null,null,""]
["   ",null,null,null,null,null,null,""]
["   ",null,null,null,null,null,null,""]
["   ",null,null,null,null,null,null,""]
["   ",null,null,null,null,null,null,""]
["   ",null,null,null,null,null,null,""]
["   ",null,null,null,null,null,null,""]
["   ",null,null,null,null,null,null,""]
["   ",null,null,null,null,null,null,""]
["   ",null,null,null,null,null,null,""]
["   ",null,null,null,null,null,null,""]
["   ",null,null,null,null,null,null,""]
["   ",null,null,null,null,null,null,""]
["   ",null,null,null,null,null,null,""]
["   ",null,null,null,null,null,null,""]
["   ",null,null,null,null,null,null,""]
["   ",null,null,null,null,null,null,""]
["   ",null,null,null,null,null,null,""]
["   ",null,null,null,null,null,null,""]
["   ",null,null,null,null,null,null,""]
["   ",null,null,null,null,null,null,""]
["   ",null,null,null,null,null,null,""]
["   ",null,null,null,null,null,null,""]
["   ",null,null,null,null,null,null,""]
["   ",null,null,null,null,null,null,""]
["   ",null,null,null,null,null,null,""]
["   ",null,null,null,null,null,null,""]
["   ",null,null,null,null,null,null,""]
["   ",null,null,null,null,null,null,""]
["   ",null,null,null,null,null,null,""]
["   ",null,null,null,null,null,null,""]
["   ",null,null,null,null,null,null,""]
["   ",null,null,null,null,null,null,""]
["   ",null,null,null,null,null,null,""]
["   ",null,null,null,null,null,null,""]
["   ",null,null,null,null,null,null,""]
["   ",null,null,null,null,null,null,{"$f":"IF(OR(F199=0,G199=0),\"\",NETWORKDAYS(F199,G199))","v":""}]
["   ",null,null,null,null,null,null,""]
["   ",null,null,null,null,null,null,""]
["   ",null,null,null,null,null,null,""]
["   ",null,null,null,null,null,null,""]
["   ",null,null,null,null,null,null,""]
["   ",null,null,null,null,null,null,""]
["   ",null,null,null,null,null,null,""]
["   ",null,null,null,null,null,null,""]
["   ",null,null,null,null,null,null,""]
["   ",null,null,null,null,null,null,""]
["   ",null,null,null,null,null,null,""]
["   ",null,null,null,null,null,null,""]
["   ",null,null,null,null,null,null,""]
["   ",null,null,null,null,null,null,""]
["   ",null,null,null,null,null,null,""]
["   ",null,null,null,null,null,null,""]
["   ",null,null,null,null,null,null,""]
["   ",null,null,null,null,null,null,""]
["   ",null,null,null,null,null,null,""]
["   ",null,null,null,null,null,null,""]
["   ",null,null,null,null,null,null,""]
["   ",null,null,null,null,null,null,""]
["   ",null,null,null,null,null,null,""]
["   ",null,null,null,null,null,null,""]
["   ",null,null,null,null,null,null,""]
["   ",null,null,null,null,null,null,""]
["   ",null,null,null,null,null,null,""]
["   ",null,null,null,null,null,null,""]
["   ",null,null,null,null,null,null,""]
["   ",null,null,null,null,null,null,""]
["   ",null,null,null,null,null,null,""]
["   ",null,null,null,null,null,null,""]
["   ",null,null,null,null,null,null,""]
["   ",null,null,null,null,null,null,""]
["   ",null,null,null,null,null,null,""]
["   ",null,null,null,null,null,null,""]
["   ",null,null,null,null,null,null,""]
["   ",null,null,null,null,null,null,""]
["   ",null,null,null,null,null,null,""]
["   ",null,null,null,null,null,null,""]
["   ",null,null,null,null,null,null,""]
["   ",null,null,null,null,null,null,""]
["   ",null,null,null,null,null,null,""]
["   ",null,null,null,null,null,null,""]
["   ",null,null,null,null,null,null,""]
["   ",null,null,null,null,null,null,""]
["   ",null,null,null,null,null,null,""]
["   ",null,null,null,null,null,null,""]
["   ",null,null,null,null,null,null,""]
["   ",null,null,null,null,null,null,""]
["   ",null,null,null,null,null,null,""]
["   ",null,null,null,null,null,null,""]
["   ",null,null,null,null,null,null,""]
["   ",null,null,null,null,null,null,""]
["   ",null,null,null,null,null,null,""]
["   ",null,null,null,null,null,null,""]
["   ",null,null,null,null,null,null,""]
["   ",null,null,null,null,null,null,""]
["   ",null,null,null,null,null,null,""]
["   ",null,null,null,null,null,null,""]
["   ",null,null,null,null,null,null,""]
["   ",null,null,null,null,null,null,""]
["   ",null,null,null,null,null,null,""]
["   ",null,null,null,null,null,null,{"$f":"IF(OR(F263=0,G263=0),\"\",NETWORKDAYS(F263,G263))","v":""}]
["   ",null,null,null,null,null,null,""]
["   ",null,null,null,null,null,null,""]
["   ",null,null,null,null,null,null,""]
["   ",null,null,null,null,null,null,""]
["   ",null,null,null,null,null,null,""]
["   ",null,null,null,null,null,null,""]
["   ",null,null,null,null,null,null,""]
["   ",null,null,null,null,null,null,""]
["   ",null,null,null,null,null,null,""]
["   ",null,null,null,null,null,null,""]
["   ",null,null,null,null,null,null,""]
["   ",null,null,null,null,null,null,""]
["   ",null,null,null,null,null,null,""]
["   ",null,null,null,null,null,null,""]
["   ",null,null,null,null,null,null,""]
["   ",null,null,null,null,null,null,""]
["   ",null,null,null,null,null,null,""]
["   ",null,null,null,null,null,null,""]
["   ",null,null,null,null,null,null,""]
["   ",null,null,null,null,null,null,""]
["   ",null,null,null,null,null,null,""]
["   ",null,null,null,null,null,null,""]
["   ",null,null,null,null,null,null,""]
["   ",null,null,null,null,null,null,""]
["   ",null,null,null,null,null,null,""]
["   ",null,null,null,null,null,null,""]
["   ",null,null,null,null,null,null,""]
["   ",null,null,null,null,null,null,""]
["   ",null,null,null,null,null,null,""]
["   ",null,null,null,null,null,null,""]
["   ",null,null,null,null,null,null,""]
["   ",null,null,null,null,null,null,""]
["   ",null,null,null,null,null,null,""]
["   ",null,null,null,null,null,null,""]
["   ",null,null,null,null,null,null,""]
["   ",null,null,null,null,null,null,""]
["   ",null,null,null,null,null,null,""]
["   ",null,null,null,null,null,null,""]
["   ",null,null,null,null,null,null,""]
["   ",null,null,null,null,null,null,""]
["   ",null,null,null,null,null,null,""]
["   ",null,null,null,null,null,null,""]
["   ",null,null,null,null,null,null,""]
["   ",null,null,null,null,null,null,""]
["   ",null,null,null,null,null,null,""]
["   ",null,null,null,null,null,null,""]
["   ",null,null,null,null,null,null,""]
["   ",null,null,null,null,null,null,""]
["   ",null,null,null,null,null,null,""]
["   ",null,null,null,null,null,null,""]
["   ",null,null,null,null,null,null,""]
["   ",null,null,null,null,null,null,""]
["   ",null,null,null,null,null,null,""]
["   ",null,null,null,null,null,null,""]
["   ",null,null,null,null,null,null,""]
["   ",null,null,null,null,null,null,""]
["   ",null,null,null,null,null,null,""]
["   ",null,null,null,null,null,null,""]
["   ",null,null,null,null,null,null,""]
["   ",null,null,null,null,null,null,""]
["   ",null,null,null,null,null,null,""]
["   ",null,null,null,null,null,null,""]
["   ",null,null,null,null,null,null,""]
["   ",null,null,null,null,null,null,{"$f":"IF(OR(F327=0,G327=0),\"\",NETWORKDAYS(F327,G327))","v":""}]
["   ",null,null,null,null,null,null,""]
["   ",null,null,null,null,null,null,""]
["   ",null,null,null,null,null,null,""]
["   ",null,null,null,null,null,null,""]
["   ",null,null,null,null,null,null,""]
["   ",null,null,null,null,null,null,""]
["   ",null,null,null,null,null,null,""]
["   ",null,null,null,null,null,null,""]
["   ",null,null,null,null,null,null,""]
["   ",null,null,null,null,null,null,""]
["   ",null,null,null,null,null,null,""]
["   ",null,null,null,null,null,null,""]
["   ",null,null,null,null,null,null,""]
["   ",null,null,null,null,null,null,""]
["   ",null,null,null,null,null,null,""]
["   ",null,null,null,null,null,null,""]
["   ",null,null,null,null,null,null,""]
["   ",null,null,null,null,null,null,""]
["   ",null,null,null,null,null,null,""]
["   ",null,null,null,null,null,null,""]
["   ",null,null,null,null,null,null,""]
["   ",null,null,null,null,null,null,""]
["   ",null,null,null,null,null,null,""]
["   ",null,null,null,null,null,null,""]
["   ",null,null,null,null,null,null,""]
["   ",null,null,null,null,null,null,""]
["   ",null,null,null,null,null,null,""]
["   ",null,null,null,null,null,null,""]
["   ",null,null,null,null,null,null,""]
["   ",null,null,null,null,null,null,""]
["   ",null,null,null,null,null,null,""]
["   ",null,null,null,null,null,null,""]
["   ",null,null,null,null,null,null,""]
["   ",null,null,null,null,null,null,""]
["   ",null,null,null,null,null,null,""]
["   ",null,null,null,null,null,null,""]
["   ",null,null,null,null,null,null,""]
["   ",null,null,null,null,null,null,""]
["   ",null,null,null,null,null,null,""]
["   ",null,null,null,null,null,null,""]
["   ",null,null,null,null,null,null,""]
["   ",null,null,null,null,null,null,""]
["   ",null,null,null,null,null,null,""]
["   ",null,null,null,null,null,null,""]
["   ",null,null,null,null,null,null,""]
["   ",null,null,null,null,null,null,""]
["   ",null,null,null,null,null,null,""]
["   ",null,null,null,null,null,null,""]
["   ",null,null,null,null,null,null,""]
["   ",null,null,null,null,null,null,""]
["   ",null,null,null,null,null,null,""]
["   ",null,null,null,null,null,null,""]
["   ",null,null,null,null,null,null,""]
["   ",null,null,null,null,null,null,""]
["   ",null,null,null,null,null,null,""]
["   ",null,null,null,null,null,null,""]
["   ",null,null,null,null,null,null,""]
["   ",null,null,null,null,null,null,""]
["   ",null,null,null,null,null,null,""]
["   ",null,null,null,null,null,null,""]
["   ",null,null,null,null,null,null,""]
["   ",null,null,null,null,null,null,""]
["   ",null,null,null,null,null,null,""]
["   ",null,null,null,null,null,null,{"$f":"IF(OR(F391=0,G391=0),\"\",NETWORKDAYS(F391,G391))","v":""}]
["   ",null,null,null,null,null,null,""]
["   ",null,null,null,null,null,null,""]
["   ",null,null,null,null,null,null,""]
["   ",null,null,null,null,null,null,""]
["   ",null,null,null,null,null,null,""]
["   ",null,null,null,null,null,null,""]
["   ",null,null,null,null,null,null,""]
["   ",null,null,null,null,null,null,""]
["   ",null,null,null,null,null,null,""]
["   ",null,null,null,null,null,null,""]
["   ",null,null,null,null,null,null,""]
["   ",null,null,null,null,null,null,""]
["   ",null,null,null,null,null,null,""]
["   ",null,null,null,null,null,null,""]
["   ",null,null,null,null,null,null,""]
["   ",null,null,null,null,null,null,""]
["   ",null,null,null,null,null,null,""]
["   ",null,null,null,null,null,null,""]
["   ",null,null,null,null,null,null,""]
["   ",null,null,null,null,null,null,""]
["   ",null,null,null,null,null,null,""]
["   ",null,null,null,null,null,null,""]
["   ",null,null,null,null,null,null,""]
["   ",null,null,null,null,null,null,""]
["   ",null,null,null,null,null,null,""]
["   ",null,null,null,null,null,null,""]
["   ",null,null,null,null,null,null,""]
["   ",null,null,null,null,null,null,""]
["   ",null,null,null,null,null,null,""]
["   ",null,null,null,null,null,null,""]
["   ",null,null,null,null,null,null,""]
["   ",null,null,null,null,null,null,""]
["   ",null,null,null,null,null,null,""]
["   ",null,null,null,null,null,null,""]
["   ",null,null,null,null,null,null,""]
["   ",null,null,null,null,null,null,""]
["   ",null,null,null,null,null,null,""]
["   ",null,null,null,null,null,null,""]
["   ",null,null,null,null,null,null,""]
["   ",null,null,null,null,null,null,""]
["   ",null,null,null,null,null,null,""]
["   ",null,null,null,null,null,null,""]
["   ",null,null,null,null,null,null,""]
["   ",null,null,null,null,null,null,""]
["   ",null,null,null,null,null,null,""]
["   ",null,null,null,null,null,null,""]
["   ",null,null,null,null,null,null,""]
["   ",null,null,null,null,null,null,""]
["   ",null,null,null,null,null,null,""]
["   ",null,null,null,null,null,null,""]
["   ",null,null,null,null,null,null,""]
["   ",null,null,null,null,null,null,""]
["   ",null,null,null,null,null,null,""]
["   ",null,null,null,null,null,null,""]
["   ",null,null,null,null,null,null,""]
["   ",null,null,null,null,null,null,""]
["   ",null,null,null,null,null,null,""]
["   ",null,null,null,null,null,null,""]
["   ",null,null,null,null,null,null,""]
["   ",null,null,null,null,null,null,""]
["   ",null,null,null,null,null,null,""]
["   ",null,null,null,null,null,null,""]
["   ",null,null,null,null,null,null,""]
["   ",null,null,null,null,null,null,{"$f":"IF(OR(F455=0,G455=0),\"\",NETWORKDAYS(F455,G455))","v":""}]
["   "]
["   "]
["   "]
["   "]
["   "]
["   "]
["   "]
["   "]
["   "]
["   "]

{"sheet":"état ","index":1,"n_rows":18,"n_cols":4,"rows_kept":18,"cut":false,"hidden":false,"merged":[]}
["ezrezr","ezrezezr","erezr","Nombre"]
["QSqs",{"$f":"COUNTIF('Calandrier de prés '!A7:A22,\"ARCHITECTURE\")","v":0},"ffff",{"$f":"COUNTIF('Calandrier de prés '!D7:D22,\"BCD\")","v":0}]
["QSqs",{"$f":"COUNTIF('Calandrier de prés '!A7:A23,\"CINEMA\")","v":0},"fffff",{"$f":"COUNTIF('Calandrier de prés '!D8:D23,\"EPL\")","v":0}]
["ss",{"$f":"COUNTIF('Calandrier de prés '!A7:A24,\"CLIMAT\")","v":0},null,{"$f":"COUNTIF('Calandrier de prés '!D9:D24,\"POLYVALANTE \")","v":0}]
["sss",{"$f":"COUNTIF('Calandrier de prés '!A7:A25,\"COLERE\")","v":0}]
["sssss",{"$f":"COUNTIF('Calandrier de prés '!A7:A26,\"CORPS EN MOUVEMENT\")","v":0}]
["sQSqs",{"$f":"COUNTIF('Calandrier de prés '!A7:A27,\"ÊTRE HUMAIN\")","v":0}]
["QSqsQS",{"$f":"COUNTIF('Calandrier de prés '!A7:A28,\"FEMMES \")","v":0}]
["QSqsQS",{"$f":"COUNTIF('Calandrier de prés '!A7:A29,\"FOOT\")","v":0}]
[null,{"$f":"COUNTIF('Calandrier de prés '!A7:A30,\"IMAGIERS\")","v":0}]
[null,{"$f":"COUNTIF('Calandrier de prés '!A7:A31,\"INVISIBLE\")","v":0}]
[null,{"$f":"COUNTIF('Calandrier de prés '!A7:A32,\"JARDINS\")","v":0}]
[null,{"$f":"COUNTIF('Calandrier de prés '!A7:A33,\"LAÏCITE\")","v":0}]
[null,{"$f":"COUNTIF('Calandrier de prés '!A7:A34,\"LIGNES\")","v":0}]
[null,{"$f":"COUNTIF('Calandrier de prés '!A7:A35,\"MATHS\")","v":0}]
[null,{"$f":"COUNTIF('Calandrier de prés '!A7:A36,\"MIGRATIONS\")","v":0}]
[null,{"$f":"COUNTIF('Calandrier de prés '!A7:A37,\"PIRATES\")","v":0}]
[null,{"$f":"COUNTIF('Calandrier de prés '!A7:A38,\"SOULEVEMENT\")","v":0}]

{"sheet":"Mes graphes","index":2,"n_rows":0,"n_cols":0,"rows_kept":0,"cut":false,"hidden":false,"merged":[]}

{"sheet":"Pramettre ","index":3,"n_rows":14,"n_cols":5,"rows_kept":14,"cut":false,"hidden":false,"merged":[]}
["dsfdsf","dfdsf",1,"fff","fff"]
["   "]
["dsfdsf",null,null,"dfsdsf",1]
["dsfdsf",null,null,"dfsdf",2]
["dsfdsf",null,null,"sdfsdf"]
["dsfdsf",null,null,"dsfdsf"]
["dsfdsfds",null,null,"dsfdsf"]
["dsfds"]
["dsfdsf"]
["fdsfdsf"]
["dsfdsfds"]
["dsfdsf"]
["dsfdsfdsf"]
["sdfsdfsdf"]